bitfinex-derivatives/quotes_ETHF0:USTF0_20241105
["timestamp","ask_amount","ask_price","bid_price","bid_amount"]
[1730820485806,40.8,2445.3,2444.6,2.8222]
[1730820486004,0.40908,2444.9,2444.6,3.23132]
[1730820486204,0.40909,2444.8,2444.6,2.8222]
[1730820486509,0.40906,2445.0,2444.7,0.4091]
[1730820486809,0.40909,2444.8,2444.6,2.8222]
[1730820487001,0.4091,2444.7,2444.6,2.8222]
[1730820487304,0.40912,2444.6,2444.5,3.2078]
[1730820487805,0.40912,2444.7,2444.5,3.2078]
[1730820488605,0.40912,2444.6,2444.5,3.2078]
[1730820488801,0.40911,2444.7,2444.5,3.2078]
[1730820489006,0.40912,2444.6,2444.5,3.2078]
[1730820489409,0.4091,2444.8,2444.5,3.61693]
[1730820489607,1.0226,2445.1,2444.5,3.61693]
[1730820489608,0.40905,2445.0,2444.5,3.61693]
[1730820489907,1.0226,2445.1,2444.5,3.61693]
[1730820489908,0.4091,2444.8,2444.5,3.61693]
[1730820490113,0.40912,2444.7,2444.5,3.2078]
[1730820490505,0.40912,2444.7,2444.5,3.61694]
[1730820490706,0.40912,2444.7,2444.5,3.2078]
[1730820491605,1.0226,2445.1,2444.5,3.2078]
[1730820491809,0.40912,2444.6,2444.5,3.2078]
[1730820493116,0.40912,2444.6,2444.5,7.2982]
[1730820493413,0.40912,2444.6,2444.5,3.2078]
[1730820494110,0.40912,2444.6,2444.5,7.2982]
[1730820494416,4.0904,2444.6,2443.9,3.2078]
[1730820494612,0.40922,2444.0,2443.9,3.2078]
[1730820495112,41.20922,2444.0,2443.9,3.2078]
[1730820495609,41.20922,2444.0,2443.4,2.6635]
[1730820495610,40.8,2444.0,2443.5,3.6171]
[1730820495817,0.40924,2443.9,2443.8,3.2078]
[1730820496011,0.40924,2443.9,2443.8,7.2998]
[1730820496207,44.73005243,2444.0,2443.3,2.65]
[1730820496512,1.02314,2443.9,2443.2,3.2078]
[1730820496711,1.02314,2443.9,2442.8,2.5753]
[1730820496712,3.93005243,2443.3,2442.5,3.2078]
[1730820496913,3.93005243,2443.3,2442.4,3.2078]
[1730820497116,0.4094,2443.0,2442.7,3.2078]
[1730820497310,0.40941,2443.0,2442.7,3.2078]
[1730820497512,0.40941,2442.9,2442.7,3.2078]
[1730820497811,6.0285,2443.5,2442.7,3.2078]
[1730820497812,0.40937,2443.1,2442.7,3.61724]
[1730820498013,0.40936,2443.2,2443.0,3.2078]
[1730820498204,6.0285,2443.5,2443.0,3.2078]
[1730820499312,0.40937,2443.1,2443.0,3.2078]
[1730820499517,0.40937,2443.2,2443.0,3.2078]
[1730820499716,0.40936,2443.2,2443.0,3.2078]
[1730820500017,6.0285,2443.5,2443.0,7.3006]
[1730820500218,0.40935,2443.3,2443.0,3.2078]
[1730820500712,6.0285,2443.5,2443.0,3.2078]
[1730820500920,6.0285,2443.5,2443.2,0.40935]
[1730820500921,3.2078,2443.5,2443.2,0.40935]
[1730820501218,2.6605,2443.9,2443.2,0.40935]
[1730820501219,0.4093,2443.6,2443.2,0.40935]
[1730820501418,3.61705,2443.9,2443.5,0.40929]
[1730820501611,3.2078,2443.9,2443.2,3.2078]
[1730820502012,0.40932,2443.5,2443.2,3.61715]
[1730820502217,3.2078,2443.9,2443.2,3.61715]
[1730820502218,3.2078,2443.9,2443.2,3.2078]
[1730820502421,2.7544,2444.0,2443.5,3.2078]
[1730820502712,43.5544,2444.0,2443.5,3.2078]
[1730820502921,43.5544,2444.0,2443.1,2.261]
[1730820502922,46.7622,2444.0,2443.1,3.61716]
[1730820503117,0.40932,2443.5,2443.1,3.61716]
[1730820503515,0.40932,2443.5,2443.1,7.70996]
[1730820503706,0.40936,2443.2,2442.7,3.2078]
[1730820503911,2.7512,2443.1,2442.4,3.2078]
[1730820504510,0.40944,2442.7,2442.4,3.2078]
[1730820504717,2.7512,2443.1,2442.6,3.2078]
[1730820504918,0.40942,2442.8,2442.6,3.2078]
[1730820505132,3.2078,2443.3,2442.6,3.2078]
[1730820505315,0.40936,2443.2,2442.6,3.61726]
[1730820505515,3.2078,2443.3,2442.6,3.2078]
[1730820505714,0.40942,2442.8,2442.6,3.2078]
[1730820506016,0.40944,2442.7,2442.6,3.2078]
[1730820506516,0.40944,2442.7,2442.6,7.3014]
[1730820506718,3.2078,2443.3,2442.6,7.3014]
[1730820506910,3.2078,2443.3,2442.6,3.2078]
[1730820506911,0.40944,2442.7,2442.6,3.2078]
[1730820507120,3.2078,2443.3,2442.6,7.3014]
[1730820507317,0.40944,2442.7,2442.6,3.2078]
[1730820507826,3.2078,2443.3,2442.6,7.3014]
[1730820508115,0.40943,2442.8,2442.6,3.2078]
[1730820508310,0.40944,2442.7,2442.6,3.2078]
[1730820508714,0.40942,2442.9,2442.6,7.71085]
[1730820509013,2.04704,2442.9,2442.4,3.2078]
[1730820509221,0.40955,2442.1,2442.0,3.2078]
[1730820509418,3.2078,2442.7,2442.0,3.2078]
[1730820509716,0.40954,2442.1,2442.0,3.2078]
[1730820510022,0.40952,2442.3,2442.0,3.61735]
[1730820510216,0.40954,2442.1,2442.0,3.2078]
[1730820510722,0.40954,2442.1,2442.0,7.303]
[1730820511419,5.7976,2442.7,2442.0,7.303]
[1730820511619,5.7976,2442.7,2442.0,3.2078]
[1730820512312,6.82124,2442.7,2442.0,3.2078]
[1730820512518,0.40954,2442.1,2442.0,3.2078]
[1730820512719,0.40957,2441.9,2441.8,0.01030132]
[1730820512924,0.40957,2441.9,2441.8,3.21810132]
[1730820513113,0.40957,2441.9,2441.8,0.01030132]
[1730820513713,0.40955,2442.1,2441.8,4.51509132]
[1730820513918,40.8,2442.0,2441.9,3.2078]
[1730820514120,40.8,2442.0,2441.8,0.41989132]
[1730820514325,0.40952,2442.3,2441.9,3.2078]
[1730820514619,5.3208,2442.6,2441.9,3.2078]
[1730820514826,6.0355,2443.1,2442.2,3.2078]
[1730820515012,3.93005243,2443.3,2442.4,3.2078]
[1730820515013,5.3513,2443.3,2442.4,3.2078]
[1730820515216,0.4094,2443.0,2442.7,3.2078]
[1730820515722,3.93005243,2443.0,2442.3,3.2078]
[1730820515925,3.03042,2442.9,2442.3,3.61729]
[1730820516222,0.40943,2442.8,2442.6,3.2078]
[1730820516523,2.621,2442.9,2442.6,3.2078]
[1730820516722,0.40943,2442.8,2442.3,3.2078]
[1730820516922,0.40944,2442.8,2442.3,3.2078]
[1730820517117,3.03041,2442.9,2442.4,0.40948]
[1730820517318,3.2078,2443.2,2442.3,3.6173]
[1730820517532,0.40943,2442.8,2442.3,3.2078]
[1730820517718,2.6255,2443.1,2442.5,0.40947]
[1730820517919,40.8,2443.4,2442.6,3.2078]
[1730820518127,40.8,2443.4,2442.7,5.4538]
[1730820518425,0.40941,2442.9,2442.6,3.2078]
[1730820518728,0.40942,2442.8,2442.6,3.2078]
[1730820518927,40.8,2443.4,2442.6,3.2078]
[1730820519431,40.8,2443.4,2442.7,2.8343]
[1730820520123,0.40935,2443.3,2442.9,3.6172]
[1730820520325,40.8,2443.4,2443.0,0.40938]
[1730820520632,40.8,2443.4,2442.9,3.2078]
[1730820520822,0.40935,2443.3,2443.0,0.40938]
[1730820521020,40.8,2443.4,2443.2,3.61715]
[1730820521416,40.8,2443.4,2443.2,3.2078]
[1730820521622,0.40934,2443.3,2443.2,3.2078]
[1730820521827,41.20934,2443.4,2443.2,3.2078]
[1730820522024,40.8,2443.4,2443.2,3.2078]
[1730820522225,0.40934,2443.3,2443.2,3.2078]
[1730820523020,0.40934,2443.3,2443.0,0.40938]
[1730820523426,40.8,2443.4,2442.9,3.2078]
[1730820523627,0.40935,2443.3,2443.0,0.40938]
[1730820523830,41.20933,2443.4,2443.1,0.40937]
[1730820524128,40.8,2443.4,2442.9,3.2078]
[1730820524325,0.40935,2443.3,2443.0,0.40938]
[1730820524526,0.40935,2443.3,2442.9,3.2078]
[1730820524728,0.40935,2443.3,2443.0,0.40939]
[1730820524928,40.8,2443.4,2442.9,3.2078]
[1730820525229,40.8,2443.4,2443.2,3.61715]
[1730820525424,40.8,2443.4,2443.3,0.40934]
[1730820525622,40.8,2443.4,2443.2,3.2078]
[1730820526032,0.40933,2443.4,2443.2,3.2078]
[1730820526226,0.40929,2443.6,2443.2,3.2078]
[1730820526427,5.4434,2443.7,2443.2,3.2078]
[1730820526629,0.40931,2443.5,2443.3,0.40934]
[1730820527029,0.40931,2443.5,2443.2,3.2078]
[1730820527231,41.20929,2443.6,2443.3,0.40932]
[1730820527530,41.20929,2443.6,2443.2,3.2078]
[1730820527531,40.8,2443.6,2443.2,3.2078]
[1730820527735,3.8050748,2444.2,2443.5,3.2078]
[1730820527736,0.40924,2443.9,2443.5,3.2078]
[1730820527925,2.7444,2444.2,2443.5,3.2078]
[1730820527926,0.40928,2443.7,2443.5,3.2078]
[1730820528131,40.8,2443.7,2443.5,3.6171]
[1730820528528,40.8,2443.7,2443.5,3.2078]
[1730820528730,0.40929,2443.6,2443.3,2.6728]
[1730820528932,41.20928,2443.7,2443.5,3.2078]
[1730820529334,0.40929,2443.6,2443.5,3.2078]
[1730820529840,41.20928,2443.7,2443.5,3.6171]
[1730820530033,0.40929,2443.6,2443.5,3.2078]
[1730820531136,12.74803791,2443.6,2442.6,3.2078]
[1730820531330,3.2078,2443.2,2442.1,0.20047986]
[1730820531527,0.4094,2443.0,2442.5,0.40946]
[1730820531734,41.2094,2443.0,2442.5,0.40946]
[1730820531940,41.2094,2443.0,2442.6,2.5738]
[1730820532235,40.8,2443.0,2442.6,5.7816]
[1730820532835,40.8,2443.0,2442.7,2.7773]
[1730820533132,0.40944,2442.7,2442.6,5.7816]
[1730820533337,3.2078,2442.9,2441.9,3.2078]
[1730820533533,3.2078,2442.6,2441.9,3.2078]
[1730820533728,0.40957,2441.9,2441.8,0.01030132]
[1730820534636,2.811,2442.2,2441.8,0.01030132]
[1730820534838,0.40957,2441.9,2441.8,0.01030132]
[1730820535227,2.811,2442.2,2441.8,0.01030132]
[1730820535433,0.40956,2442.0,2441.8,0.01030132]
[1730820536441,0.40957,2441.9,2441.8,0.01030132]
[1730820538531,6.0188,2442.2,2441.8,0.01030132]
[1730820538740,2.811,2442.2,2441.8,0.01030132]
[1730820538937,0.40957,2441.9,2441.8,0.01030132]
[1730820539140,0.40957,2442.0,2441.8,0.01030132]
[1730820539436,2.811,2442.2,2441.8,0.01030132]
[1730820539841,0.40951,2442.3,2441.8,0.01030132]
[1730820540038,0.40956,2442.0,2441.8,0.01030132]
[1730820540339,0.40953,2442.2,2441.9,0.40957]
[1730820540540,4.2684748,2442.5,2441.8,0.01030132]
[1730820541042,4.2684748,2442.5,2441.8,3.94419867]
[1730820541043,3.2078,2442.5,2441.8,3.94419867]
[1730820541446,0.40949,2442.4,2442.1,0.40953]
[1730820541631,3.61728,2442.5,2442.2,0.40952]
[1730820541833,3.61728,2442.5,2442.3,0.40951]
[1730820542035,1.59101221,2442.9,2442.3,0.40951]
[1730820542036,0.40945,2442.7,2442.4,4.50389]
[1730820542243,0.40947,2442.6,2442.4,5.4879]
[1730820542437,0.40941,2442.9,2442.5,0.40946]
[1730820542653,0.40941,2442.9,2442.4,5.4879]
[1730820542841,0.40941,2442.9,2442.4,8.0873]
[1730820543044,0.4094,2443.0,2442.7,0.40943]
[1730820543244,0.40942,2442.9,2442.6,3.61725]
[1730820543545,0.40941,2442.9,2442.6,3.61725]
[1730820543741,40.8,2443.2,2442.7,4.0936]
[1730820544045,40.8,2443.2,2442.6,3.2078]
[1730820544046,40.8,2443.2,2442.9,0.4094]
[1730820544249,0.40938,2443.1,2442.6,3.2078]
[1730820544449,40.8,2443.2,2442.7,0.40943]
[1730820544450,0.4094,2443.0,2442.7,0.40943]
[1730820544747,0.40938,2443.1,2442.8,0.40941]
[1730820545242,0.40937,2443.1,2442.8,0.40941]
[1730820545650,0.40939,2443.1,2442.8,0.40942]
[1730820545949,0.40939,2443.1,2442.8,0.40941]
[1730820546247,0.40939,2443.1,2442.9,0.4094]
[1730820546641,0.40939,2443.1,2442.8,0.40941]
[1730820546843,0.40939,2443.1,2442.9,0.4094]
[1730820547039,0.40936,2443.2,2442.9,0.4094]
[1730820547940,47.8685748,2443.4,2442.7,7.14169735]
[1730820548140,47.8685748,2443.4,2442.5,0.40947]
[1730820548442,3.2078,2443.1,2442.5,0.40947]
[1730820548645,3.7240748,2443.0,2442.3,2.253]
[1730820548948,1.0606748,2442.9,2442.3,2.253]
[1730820549250,1.0606748,2442.9,2442.3,5.4608]
[1730820549548,1.0606748,2442.9,2442.3,5.8703]
[1730820549549,0.40947,2442.6,2442.3,5.8703]
[1730820549849,0.40945,2442.7,2442.4,0.40948]
[1730820550050,1.0606748,2442.9,2442.3,5.4608]
[1730820550252,4.79881221,2443.1,2442.4,0.40948]
[1730820550253,0.40945,2442.7,2442.4,0.40948]
[1730820550449,1.0606748,2442.9,2442.3,5.4608]
[1730820550645,1.0606748,2443.0,2441.9,12.51179735]
[1730820550853,0.4095,2442.4,2442.1,0.40953]
[1730820551051,0.40951,2442.3,2442.0,0.40955]
[1730820551450,0.40951,2442.3,2442.0,0.40956]
[1730820552149,0.4095,2442.4,2442.1,0.40953]
[1730820552348,0.40951,2442.3,2442.0,0.40955]
[1730820552647,0.40952,2442.2,2441.9,5.77966]
[1730820552857,0.40952,2442.3,2442.0,0.40955]
[1730820553049,1.0606748,2442.5,2441.9,5.3701]
[1730820553245,0.40952,2442.3,2442.0,0.40956]
[1730820553951,0.40957,2441.9,2441.8,0.01030132]
[1730820554156,6.4573748,2442.2,2441.8,0.01030132]
[1730820554459,0.40957,2441.9,2441.8,0.01030132]
[1730820555550,0.40965,2441.5,2441.0,3.2078]
[1730820555746,1.06847092,2441.6,2441.0,3.2078]
[1730820555944,1.06847092,2441.4,2441.0,3.2078]
[1730820556354,3.84907092,2441.4,2441.0,3.2078]
[1730820556649,0.40968,2441.3,2441.0,3.2078]
[1730820556855,2.7806,2441.4,2441.0,3.2078]
[1730820557058,0.40968,2441.3,2441.0,3.2078]
[1730820557258,0.40968,2441.3,2440.2,3.2078]
[1730820557259,1.06847092,2441.2,2440.2,3.2078]
[1730820557449,0.40977,2440.8,2440.2,3.2078]
[1730820557751,3.2078,2441.1,2440.6,3.2078]
[1730820557953,0.40973,2441.0,2440.5,0.40981]
[1730820558256,3.2078,2441.1,2440.4,3.93389735]
[1730820558446,3.61752,2441.1,2440.6,0.40978]
[1730820558646,3.2078,2441.1,2440.7,0.40977]
[1730820559254,7.14169735,2441.1,2440.1,0.19867661]
[1730820559444,0.40975,2440.9,2440.4,0.40982]
[1730820559647,3.2078,2441.1,2440.3,3.2078]
[1730820559847,40.8,2441.0,2440.3,3.2078]
[1730820560047,40.8,2441.0,2440.7,0.40976]
[1730820560253,3.2078,2441.1,2440.8,0.40975]
[1730820560456,3.2078,2441.1,2440.6,3.2078]
[1730820560658,3.2078,2441.1,2440.9,0.40973]
[1730820560846,44.0078,2441.1,2440.9,0.40973]
[1730820561047,44.0078,2441.1,2440.8,0.40975]
[1730820561251,3.2078,2441.1,2440.8,0.40975]
[1730820561454,0.40973,2441.0,2440.7,5.6209]
[1730820561757,3.2078,2441.1,2440.7,5.6209]
[1730820562053,0.40973,2441.0,2440.7,5.6209]
[1730820562451,3.2078,2441.1,2440.7,5.6209]
[1730820562653,3.2078,2441.1,2440.8,0.40975]
[1730820562844,3.2078,2441.1,2440.0,3.4078]
[1730820563058,0.40977,2440.8,2440.3,0.40984]
[1730820563255,0.40975,2440.9,2440.3,0.40984]
[1730820563450,3.2078,2441.1,2440.4,0.40982]
[1730820563451,0.40976,2440.8,2440.4,0.40982]
[1730820563656,0.4098,2440.6,2440.2,0.40985]
[1730820563863,0.4098,2440.6,2439.1,3.2078]
[1730820563864,3.93389735,2440.3,2439.1,3.2078]
[1730820564050,4.34386735,2439.6,2438.9,2.13390268]
[1730820564252,3.93389735,2439.6,2438.9,0.19952924]
[1730820564447,40.8,2439.5,2438.4,3.2078]
[1730820564652,40.8,2439.5,2439.2,0.41001]
[1730820564946,40.8,2439.5,2439.4,0.40999]
[1730820565157,2.7845,2440.1,2439.3,3.2078]
[1730820565347,1.59963492,2440.2,2439.3,3.2078]
[1730820565653,3.2078,2440.3,2439.7,3.2078]
[1730820565654,40.8,2440.1,2439.7,3.2078]
[1730820565857,6.0308,2440.6,2440.0,0.40989]
[1730820566050,5.621,2440.6,2439.8,2.7771]
[1730820566249,5.621,2440.6,2440.0,3.2078]
[1730820566450,3.2078,2440.7,2440.0,3.2078]
[1730820566651,3.2078,2440.7,2440.1,0.40987]
[1730820566850,3.2078,2440.7,2440.1,0.40986]
[1730820567058,3.2078,2440.7,2440.1,0.40987]
[1730820567257,3.2078,2440.7,2440.2,0.40986]
[1730820567755,3.2078,2440.7,2440.0,3.2078]
[1730820567962,3.2078,2440.7,2440.2,0.40985]
[1730820568365,3.2078,2440.7,2440.0,3.2078]
[1730820568655,3.61758,2440.7,2440.0,3.2078]
[1730820568860,3.2078,2440.7,2440.3,0.40983]
[1730820569057,3.2078,2440.7,2440.0,3.2078]
[1730820569261,3.2078,2440.7,2440.3,0.40983]
[1730820569764,3.2078,2440.7,2440.5,0.40979]
[1730820569958,3.2078,2440.7,2440.0,3.2078]
[1730820570152,3.2078,2440.7,2440.6,0.40979]
[1730820570466,2.7845,2441.0,2440.6,0.40978]
[1730820570762,2.7845,2441.0,2440.5,3.2078]
[1730820570961,2.7845,2441.0,2440.7,0.40976]
[1730820571165,2.7845,2441.0,2440.5,3.2078]
[1730820571369,2.7845,2441.0,2440.2,0.40985]
[1730820571370,0.40979,2440.6,2440.2,0.40985]
[1730820571560,3.2078,2440.8,2439.6,5.4047]
[1730820571760,3.1078,2440.8,2439.7,3.93389735]
[1730820571974,0.40981,2440.5,2440.1,0.40987]
[1730820572353,3.1078,2440.8,2440.0,3.2078]
[1730820572560,3.1078,2440.8,2439.7,3.93389735]
[1730820572561,3.1078,2440.8,2440.1,0.40987]
[1730820572765,0.4098,2440.6,2440.1,0.40986]
[1730820572969,0.40983,2440.4,2440.0,0.40989]
[1730820573274,3.1078,2440.8,2440.0,3.2078]
[1730820573474,0.40979,2440.6,2440.0,3.2078]
[1730820573665,3.93389735,2440.4,2439.6,0.19494243]
[1730820573866,3.2078,2439.9,2439.3,3.2078]
[1730820574073,2.6032,2439.8,2439.3,3.2078]
[1730820574271,2.6032,2439.8,2439.3,7.14169735]
[1730820574478,0.40987,2440.2,2439.7,0.40994]
[1730820574675,5.825,2440.3,2439.3,7.14169735]
[1730820575070,5.825,2440.3,2439.6,3.2078]
[1730820575771,5.825,2440.3,2439.3,3.2078]
[1730820575972,40.8,2440.2,2439.3,3.2078]
[1730820576175,0.40992,2439.9,2439.4,0.40998]
[1730820576475,0.40993,2439.8,2439.3,3.6178]
[1730820576979,0.40993,2439.8,2439.3,3.2078]
[1730820577172,0.40993,2439.8,2439.3,3.6178]
[1730820577874,0.40993,2439.8,2439.3,3.2078]
[1730820578080,3.2078,2440.0,2439.3,3.2078]
[1730820578272,0.40995,2439.7,2439.3,3.2078]
[1730820578475,3.2078,2440.0,2439.3,3.2078]
[1730820578476,0.40996,2439.6,2439.3,3.2078]
[1730820578670,0.40995,2439.7,2439.3,3.6178]
[1730820578975,40.8,2440.2,2439.3,3.2078]
[1730820579184,3.2078,2440.0,2439.3,3.2078]
[1730820579366,0.40995,2439.7,2439.3,3.6178]
[1730820579566,3.2078,2440.0,2439.3,3.2078]
[1730820579972,0.40996,2439.6,2439.3,3.2078]
[1730820580170,3.2078,2440.0,2439.3,3.2078]
[1730820580377,0.40997,2439.6,2439.3,3.2078]
[1730820580581,1.02478,2439.9,2439.3,3.2078]
[1730820580877,0.40999,2439.4,2439.3,3.2078]
[1730820581183,1.02487,2439.7,2439.0,5.3794]
[1730820581371,40.8,2440.2,2438.2,3.2078]
[1730820581372,3.2078,2439.1,2438.2,3.2078]
[1730820581675,3.2078,2439.1,2438.4,3.93389735]
[1730820581977,0.41008,2438.9,2438.5,0.41014]
[1730820582368,3.2078,2439.1,2438.5,7.3086]
[1730820582676,2.815,2439.5,2438.8,0.41009]
[1730820582677,0.41003,2439.2,2438.8,0.41009]
[1730820582878,40.8,2439.2,2438.9,0.41008]
[1730820583074,2.6425,2439.6,2438.8,3.2078]
[1730820583374,0.41,2439.4,2439.0,0.41005]
[1730820583582,0.41,2439.4,2439.0,0.41006]
[1730820583880,5.4508,2439.6,2439.1,0.41003]
[1730820583881,0.40998,2439.5,2439.1,0.41003]
[1730820584074,0.40998,2439.5,2439.1,3.2078]
[1730820584381,0.40998,2439.5,2439.2,0.41002]
[1730820584985,3.2078,2439.7,2439.1,3.2078]
[1730820584986,0.40996,2439.6,2439.1,3.2078]
[1730820585280,3.61775,2439.7,2439.1,3.2078]
[1730820585478,3.61775,2439.7,2439.3,0.41]
[1730820585778,0.40998,2439.5,2439.2,0.41002]
[1730820585975,3.2078,2439.7,2439.1,3.2078]
[1730820586175,3.2078,2439.7,2438.9,0.41007]
[1730820586374,3.2078,2439.7,2439.0,0.41005]
[1730820586375,0.41002,2439.3,2439.0,0.41005]
[1730820586576,0.41004,2439.2,2438.9,0.41007]
[1730820586775,0.41004,2439.2,2438.8,3.61788]
[1730820587070,4.23269,2439.7,2439.0,0.41005]
[1730820587071,3.2078,2439.7,2439.0,0.41005]
[1730820587376,3.93389735,2439.3,2438.6,2.6827]
[1730820587576,4.23282,2439.4,2438.6,2.6827]
[1730820587577,3.2078,2439.4,2438.6,2.6827]
[1730820587776,4.23268,2439.7,2438.6,2.6827]
[1730820587982,0.40998,2439.5,2439.2,0.41002]
[1730820588177,3.2078,2439.7,2438.8,3.2078]
[1730820588382,0.40996,2439.6,2439.1,0.41003]
[1730820588680,3.2078,2439.7,2439.4,0.40999]
[1730820588681,3.61775,2439.7,2439.4,0.40999]
[1730820588880,0.40997,2439.6,2439.3,3.61781]
[1730820589077,7.833,2438.7,2437.8,3.2078]
[1730820589283,11.0408,2438.7,2438.0,5.3639]
[1730820589485,7.83312,2438.7,2438.1,0.41021]
[1730820589677,7.423,2438.7,2438.5,0.41013]
[1730820589978,7.423,2438.7,2438.1,4.23334]
[1730820589979,40.8,2439.0,2438.1,3.2078]
[1730820590179,3.93389735,2438.7,2438.1,3.2078]
[1730820590487,3.93389735,2438.7,2438.0,5.3639]
[1730820590488,0.41017,2438.4,2438.0,5.3639]
[1730820590683,7.14169735,2438.7,2437.7,3.2078]
[1730820590979,0.41018,2438.4,2437.9,0.41024]
[1730820591181,2.7952,2438.6,2437.8,0.41025]
[1730820591386,0.4102,2438.2,2437.7,0.41027]
[1730820591599,0.41019,2438.3,2437.7,3.61807]
[1730820591881,3.2078,2438.4,2437.5,5.3639]
[1730820591882,7.14169735,2438.4,2437.5,5.3639]
[1730820592274,0.41021,2438.2,2437.5,5.7742]
[1730820592475,0.41019,2438.3,2437.7,3.2078]
[1730820592679,0.41019,2438.3,2437.5,5.3639]
[1730820592882,3.2078,2438.4,2437.7,3.61808]
[1730820593179,3.2078,2438.4,2437.8,0.41025]
[1730820593387,0.41022,2438.1,2437.5,5.3639]
[1730820593588,3.2078,2438.4,2437.5,5.3639]
[1730820593785,0.41025,2437.9,2437.4,3.2078]
[1730820593995,3.2078,2438.1,2437.4,3.2078]
[1730820594296,0.41029,2437.7,2437.0,5.32069]
[1730820594479,3.2078,2437.8,2437.0,2.6603]
[1730820594680,0.41031,2437.6,2437.0,2.6603]
[1730820594879,0.41029,2437.7,2437.0,3.07069]
[1730820595080,3.2078,2437.8,2437.0,5.8681]
[1730820595298,3.2078,2438.4,2437.6,3.2078]
[1730820595583,3.2078,2438.4,2438.0,0.41023]
[1730820595789,3.2078,2439.0,2438.3,3.2078]
[1730820596787,5.3192,2439.3,2438.1,3.93389735]
[1730820596788,0.41005,2439.1,2438.6,3.2078]
[1730820597187,8.527,2439.3,2438.6,3.2078]
[1730820597389,0.41004,2439.2,2438.6,3.2078]
[1730820597584,0.41005,2439.1,2438.6,3.2078]
[1730820598387,8.527,2439.3,2438.6,3.2078]
[1730820598693,0.41005,2439.1,2438.6,3.2078]
[1730820599189,0.41008,2439.0,2438.4,5.79815]
[1730820599389,0.41005,2439.1,2438.5,0.41013]
[1730820599892,8.527,2439.3,2438.4,8.5958]
[1730820600104,8.527,2439.3,2438.8,0.41009]
[1730820600387,0.41004,2439.1,2438.4,0.41015]
[1730820600586,0.4101,2438.8,2438.3,3.61797]
[1730820600782,0.41007,2439.0,2438.3,3.2078]
[1730820600983,3.2078,2439.2,2438.3,3.2078]
[1730820601198,0.41006,2439.0,2438.5,0.41014]
[1730820601488,3.2078,2439.5,2438.7,7.14169735]
[1730820601684,0.41004,2439.2,2438.8,2.6611]
[1730820601883,3.66719,2439.9,2438.4,3.93389735]
[1730820601884,40.8,2439.1,2438.4,3.2078]
[1730820602189,43.4325,2439.1,2438.4,3.2078]
[1730820602383,5.8502,2439.0,2438.4,3.2078]
[1730820602586,0.4101,2438.8,2438.4,3.2078]
[1730820602893,0.41012,2438.7,2438.4,3.2078]
[1730820603087,0.41014,2438.6,2438.4,3.2078]
[1730820603386,5.8502,2439.0,2438.4,3.2078]
[1730820603786,5.8502,2439.0,2438.0,4.9111]
[1730820603979,3.93389735,2438.8,2438.0,2.6611]
[1730820604185,3.2078,2438.7,2437.9,3.2078]
[1730820604384,3.2078,2438.7,2437.5,3.2078]
[1730820604385,3.2078,2438.4,2437.5,3.2078]
[1730820604586,3.2078,2438.4,2437.0,3.73432969]
[1730820604587,3.2078,2437.8,2436.9,1.06695134]
[1730820604885,3.2078,2437.8,2436.8,2.13390268]
[1730820604886,3.93389735,2437.4,2436.8,2.13390268]
[1730820605091,3.2078,2437.5,2436.7,2.8384]
[1730820605284,3.2078,2437.2,2436.4,3.2078]
[1730820605483,0.41046,2436.7,2436.2,0.41052]
[1730820605679,3.2078,2436.9,2436.1,3.2078]
[1730820605890,3.2078,2436.9,2436.1,3.61834]
[1730820606094,3.2078,2436.9,2436.1,3.2078]
[1730820606288,3.2078,2436.6,2435.7,3.2078]
[1730820606482,0.41066,2435.5,2435.1,1.06695134]
[1730820606684,3.2078,2435.5,2435.1,1.06695134]
[1730820606887,2.3878,2435.5,2434.9,2.54464268]
[1730820607291,2.3878,2435.5,2434.9,2.13390268]
[1730820607587,40.8,2435.4,2435.0,0.41072]
[1730820607781,40.8,2435.4,2434.7,3.2078]
[1730820607983,3.2078,2435.8,2435.3,3.2078]
[1730820608489,40.8,2435.7,2434.8,6.68867351]
[1730820608795,40.8,2435.7,2434.8,2.251]
[1730820608994,40.8,2435.7,2435.0,3.2078]
[1730820609191,40.8,2435.7,2434.8,2.251]
[1730820609192,3.2078,2435.5,2434.8,2.251]
[1730820609386,3.2078,2435.5,2434.9,0.41074]
[1730820610489,3.2078,2435.5,2435.4,0.41067]
[1730820610692,4.64267351,2436.8,2435.4,0.41067]
[1730820610693,3.2078,2436.3,2435.4,4.43767351]
[1730820610995,3.2078,2436.3,2435.9,3.2078]
[1730820611185,3.2078,2436.3,2435.6,3.2078]
[1730820611583,3.2078,2436.3,2435.4,3.2078]
[1730820611784,3.2078,2436.0,2435.1,3.2078]
[1730820611997,0.41067,2435.4,2435.1,3.2078]
[1730820612498,2.6183,2435.9,2435.1,3.61851]
[1730820612793,2.6183,2435.9,2435.1,3.2078]
[1730820612995,0.4106,2435.8,2435.1,3.2078]
[1730820613187,0.41062,2435.7,2435.2,0.41069]
[1730820613393,0.41061,2435.8,2435.3,0.41067]
[1730820613587,3.2078,2436.0,2435.1,3.2078]
[1730820613800,3.2078,2436.3,2435.6,3.2078]
[1730820613995,3.2078,2436.3,2435.9,0.41058]
[1730820614188,3.2078,2436.3,2435.6,3.2078]
[1730820614189,7.3126,2436.3,2435.7,0.41061]
[1730820614393,3.61832,2436.3,2435.9,0.41058]
[1730820614594,3.61832,2436.3,2435.6,3.61842]